bitfinex/quotes_BTCUSD_20241018
["timestamp","ask_amount","ask_price","bid_price","bid_amount"]
[1729275903307,0.000829,68755.0,68754.0,0.08709075]
[1729275905243,0.000829,68755.0,68753.0,0.18999941]
[1729275905745,0.000829,68755.0,68754.0,0.25360198]
[1729275905974,0.000829,68755.0,68754.0,0.1870567]
[1729275906416,0.000829,68755.0,68754.0,0.1]
[1729275906671,0.000829,68755.0,68754.0,0.16528832]
[1729275906910,0.000829,68755.0,68754.0,0.06528832]
[1729275907136,0.000829,68755.0,68753.0,0.08996536]
[1729275907367,0.000829,68755.0,68754.0,0.16528207]
[1729275908539,0.000829,68755.0,68754.0,0.06528207]
[1729275911378,0.000829,68755.0,68753.0,0.16528207]
[1729275912696,0.000829,68755.0,68753.0,0.18199547]
[1729275913344,0.000829,68755.0,68753.0,0.08199547]
[1729275914527,0.000829,68755.0,68753.0,0.06528207]
[1729275915022,0.000829,68755.0,68754.0,0.1]
[1729275915243,0.000829,68755.0,68754.0,1.22028942]
[1729275915506,0.000829,68755.0,68754.0,4.14062842]
[1729275915737,0.000829,68755.0,68754.0,4.10902942]
[1729275918342,0.000829,68755.0,68754.0,4.23933004]
[1729275919320,0.000829,68755.0,68754.0,4.10902942]
[1729275919776,0.000829,68755.0,68754.0,4.10702712]
[1729275919994,0.000829,68755.0,68754.0,2.09165512]
[1729275922135,0.000829,68755.0,68754.0,2.10858019]
[1729275922395,0.000829,68755.0,68754.0,2.2171176]
[1729275923031,0.000829,68755.0,68754.0,2.06815845]
[1729275923257,0.000829,68755.0,68754.0,1.56210808]
[1729275923465,0.000829,68755.0,68754.0,1.71205086]
[1729275924107,0.001658,68764.0,68755.0,0.1]
[1729275924335,0.001658,68764.0,68760.0,0.04340649]
[1729275924552,0.001658,68764.0,68762.0,0.1]
[1729275924790,0.001658,68764.0,68763.0,2.962571]
[1729275925106,0.001658,68764.0,68763.0,2.137649]
[1729275925226,0.001658,68764.0,68763.0,2.029253]
[1729275926307,0.001658,68764.0,68763.0,2.028108]
[1729275926729,0.001658,68764.0,68763.0,1.548105]
[1729275927177,0.001658,68764.0,68763.0,0.76117]
[1729275927408,0.001658,68764.0,68763.0,0.688398]
[1729275928275,0.001658,68764.0,68763.0,0.73180449]
[1729275928489,0.001658,68764.0,68763.0,0.688398]
[1729275929980,0.000829,68772.0,68765.0,0.1]
[1729275930229,0.000829,68772.0,68767.0,0.1]
[1729275930439,0.000829,68772.0,68769.0,0.1]
[1729275930648,0.000829,68772.0,68771.0,0.1]
[1729275930878,0.000829,68772.0,68771.0,4.31482415]
[1729275931096,0.000829,68772.0,68771.0,4.35819018]
[1729275931304,0.000829,68772.0,68771.0,4.48902415]
[1729275931581,0.000829,68772.0,68771.0,4.50638283]
[1729275931796,0.000829,68772.0,68771.0,4.40296883]
[1729275934564,0.000829,68772.0,68771.0,4.38561015]
[1729275936489,0.000829,68772.0,68771.0,4.38535515]
[1729275936736,0.000829,68772.0,68771.0,4.38722091]
[1729275936964,0.000829,68772.0,68771.0,4.47509647]
[1729275937204,0.000829,68772.0,68771.0,4.47507958]
[1729275937438,0.000829,68772.0,68771.0,0.51262858]
[1729275937896,0.000829,68772.0,68771.0,5.56262858]
[1729275938383,0.000829,68772.0,68771.0,5.51808224]
[1729275938613,0.000829,68772.0,68771.0,5.51807785]
[1729275940267,0.000829,68772.0,68771.0,5.47476991]
[1729275940494,0.22555696,68785.0,68771.0,5.47476991]
[1729275940737,0.22555696,68785.0,68773.0,0.1]
[1729275940993,0.00746555,68785.0,68774.0,0.14895915]
[1729275941203,0.00746555,68785.0,68775.0,0.1]
[1729275941411,0.00746555,68785.0,68777.0,0.1]
[1729275941623,0.00746555,68785.0,68779.0,0.1]
[1729275941847,0.00746555,68785.0,68780.0,0.1]
[1729275942894,0.00746555,68785.0,68774.0,0.01732514]
[1729275943112,0.00746555,68785.0,68776.0,0.1]
[1729275943325,0.00746555,68785.0,68778.0,0.1]
[1729275943971,0.0101723,68784.0,68778.0,0.1]
[1729275944658,0.0783,68783.0,68776.0,0.1]
[1729275944899,0.0783,68783.0,68776.0,2.754639]
[1729275945135,0.01016844,68782.0,68777.0,2.65411]
[1729275945368,0.0783,68783.0,68778.0,0.1]
[1729275945850,0.00746555,68785.0,68778.0,0.1]
[1729275946068,0.01016844,68782.0,68778.0,0.1]
[1729275946275,0.00746555,68785.0,68776.0,0.1]
[1729275946487,0.00746555,68785.0,68776.0,1.799529]
[1729275946488,0.01016436,68781.0,68776.0,1.799529]
[1729275946693,0.00746555,68785.0,68776.0,1.799529]
[1729275946933,0.00746555,68785.0,68778.0,0.1]
[1729275947146,0.00746555,68785.0,68780.0,0.06]
[1729275947587,0.0101701,68784.0,68780.0,0.06]
[1729275947796,0.00746555,68785.0,68781.0,0.00112216]
[1729275949325,0.00746555,68785.0,68782.0,0.24895915]
[1729275949572,0.00746555,68785.0,68784.0,0.1]
[1729275949786,0.00829355,68785.0,68784.0,0.24895915]
[1729275950228,0.00829355,68785.0,68784.0,0.29526043]
[1729275950438,0.00829355,68785.0,68784.0,0.45089402]
[1729275950646,0.00829355,68785.0,68784.0,0.4491245]
[1729275950919,0.00829355,68785.0,68784.0,0.38419091]
[1729275951136,4e-05,68788.0,68784.0,0.38419091]
[1729275951377,4e-05,68788.0,68786.0,0.14326645]
[1729275951585,0.21809141,68800.0,68788.0,0.1]
[1729275951805,0.0823,68806.0,68789.0,0.0965]
[1729275952017,0.000829,68811.0,68791.0,0.1]
[1729275952018,0.21809141,68809.0,68791.0,0.1]
[1729275952240,0.22140524,68809.0,68793.0,0.1]
[1729275952450,0.21809141,68809.0,68794.0,0.24895915]
[1729275953094,0.22140524,68809.0,68794.0,0.24895915]
[1729275953805,0.21809141,68809.0,68794.0,0.24895915]
[1729275954663,0.21809141,68809.0,68794.0,0.33065915]
[1729275955699,0.21809141,68809.0,68794.0,0.33239771]
[1729275957238,0.21809141,68808.0,68794.0,0.42429771]
[1729275959123,0.21809141,68808.0,68794.0,0.42255915]
[1729275960623,0.21809141,68808.0,68800.0,0.059171]
[1729275960837,0.000829,68811.0,68802.0,0.1]
[1729275961144,0.01028149,68806.0,68803.0,0.14895915]
[1729275961238,0.000829,68811.0,68804.0,0.1]
[1729275961462,0.000829,68811.0,68805.0,0.14895915]
[1729275961672,0.000829,68811.0,68806.0,0.1]
[1729275966483,0.000829,68811.0,68800.0,0.059171]
[1729275966683,0.000829,68811.0,68802.0,0.1]
[1729275966883,0.000829,68811.0,68804.0,0.1]
[1729275967750,0.000829,68811.0,68806.0,0.1]
[1729275968734,0.31439141,68820.0,68806.0,0.1]
[1729275968974,0.00331383,68819.0,68806.0,0.1]
[1729275969195,0.01365,68819.0,68806.0,0.1]
[1729275969817,0.01365,68819.0,68807.0,0.21809141]
[1729275970053,0.01365,68819.0,68808.0,0.1]
[1729275970469,0.00331383,68819.0,68808.0,0.1]
[1729275971766,0.0768,68818.0,68808.0,0.1]
[1729275971968,0.00331383,68817.0,68808.0,0.1]
[1729275972185,0.01364855,68817.0,68808.0,0.1]
[1729275974930,0.01364855,68817.0,68796.0,0.1]
[1729275975133,0.09,68816.0,68807.0,0.1]
[1729275975338,0.00331383,68815.0,68807.0,0.1]
[1729275975544,0.01364221,68815.0,68807.0,0.1]
[1729275976450,0.01364221,68815.0,68798.0,0.1]
[1729275976704,0.01364221,68815.0,68805.0,0.1]
[1729275976923,0.22705915,68814.0,68805.0,0.1]
[1729275977132,0.1711,68812.0,68805.0,0.1]
[1729275977337,0.00331383,68811.0,68805.0,0.1]
[1729275977549,0.1711,68808.0,68797.0,0.01694183]
[1729275977759,0.14895915,68810.0,68800.0,0.21809141]
[1729275977760,0.0781,68803.0,68800.0,0.21809141]
[1729275977980,0.0781,68803.0,68797.0,0.01694183]
[1729275977981,0.0776,68801.0,68797.0,0.01694183]
[1729275978191,0.00331383,68800.0,68797.0,0.01694183]
[1729275978397,0.16255646,68800.0,68797.0,0.01694183]
[1729275978606,0.15982442,68799.0,68797.0,0.01694183]
[1729275978827,0.0141791,68798.0,68797.0,0.01694183]
[1729275979036,0.1734001,68798.0,68795.0,0.001658]
[1729275979289,0.24072442,68797.0,68795.0,0.001658]
[1729275979498,0.09381383,68796.0,68795.0,0.001658]
[1729275979704,0.10407182,68796.0,68795.0,0.001658]
[1729275981633,0.01357182,68796.0,68795.0,0.00324966]
[1729275982694,0.01025799,68796.0,68795.0,0.00324966]
[1729275983314,0.01357182,68796.0,68795.0,0.001658]
[1729275984342,0.01025799,68796.0,68795.0,0.001658]
[1729275984716,0.00331383,68800.0,68795.0,0.001658]
[1729275984932,0.01107086,68796.0,68795.0,0.001658]
[1729275985135,0.00331383,68800.0,68795.0,0.001658]
[1729275985336,0.01107086,68796.0,68795.0,0.001658]
[1729275985512,0.00331383,68800.0,68795.0,0.001658]
[1729275985717,0.01107086,68796.0,68795.0,0.001658]
[1729275985914,0.00331383,68800.0,68795.0,0.001658]
[1729275986112,0.01107086,68796.0,68795.0,0.001658]
[1729275986312,0.00331383,68800.0,68795.0,0.001658]
[1729275986542,0.01107086,68796.0,68795.0,0.001658]
[1729275986742,0.00331383,68800.0,68795.0,0.001658]
[1729275986943,0.01107086,68796.0,68795.0,0.001658]
[1729275987144,0.00331383,68800.0,68795.0,0.001658]
[1729275987348,0.01107086,68796.0,68795.0,0.001658]
[1729275987549,0.00331383,68800.0,68795.0,0.001658]
[1729275987759,0.01107086,68796.0,68795.0,0.001658]
[1729275988090,0.01107086,68796.0,68795.0,0.0024399]
[1729275988325,0.00331383,68805.0,68795.0,0.0032218]
[1729275988535,0.01107086,68796.0,68795.0,0.0032218]
[1729275988743,0.00331383,68803.0,68795.0,0.0032218]
[1729275988917,0.15227298,68803.0,68795.0,0.0032218]
[1729275989172,0.01108243,68802.0,68795.0,0.0032218]
[1729275989383,0.00331383,68801.0,68795.0,0.0032218]
[1729275989801,0.01107858,68800.0,68795.0,0.0032218]
[1729275990437,0.01439241,68800.0,68795.0,0.0032218]
[1729275991481,0.01439241,68800.0,68796.0,0.00153644]
[1729275991482,0.01107858,68800.0,68796.0,0.00153644]
[1729275991946,0.00331383,68805.0,68796.0,0.00153644]
[1729275992167,0.00331383,68805.0,68798.0,0.01]
[1729275992381,0.01108629,68804.0,68798.0,0.01]
[1729275992602,0.21809141,68812.0,68798.0,0.01]
[1729275992603,0.00331383,68810.0,68798.0,0.01]
[1729275992815,0.000829,68815.0,68800.0,0.1]
[1729275993022,0.01109593,68809.0,68800.0,0.1]
[1729275993227,0.01109593,68809.0,68802.0,0.1]
[1729275993439,0.000829,68815.0,68802.0,0.1]
[1729275993654,0.00331383,68814.0,68802.0,0.1]
[1729275993869,0.0144194,68814.0,68802.0,0.1]
[1729275994275,0.0144194,68814.0,68808.0,0.21809141]
[1729275994515,0.0144194,68814.0,68809.0,5.41406479]
[1729275994516,0.00291809,68814.0,68809.0,5.41406479]
[1729275994777,0.00999309,68813.0,68812.0,0.1718]
[1729275994999,0.000829,68820.0,68812.0,5.37075915]
[1729275995206,0.000829,68820.0,68813.0,5.24222253]
[1729275995456,0.000829,68820.0,68815.0,0.12596338]
[1729275995662,0.000829,68820.0,68816.0,1.94741415]
[1729275995879,0.000829,68820.0,68817.0,1.962493]
[1729275996095,0.000829,68820.0,68818.0,0.14895915]
[1729275996302,0.000829,68820.0,68819.0,0.505754]
[1729275996512,0.000829,68820.0,68819.0,0.65471315]
[1729276003981,0.000829,68820.0,68819.0,0.67136735]
[1729276004192,0.000829,68820.0,68819.0,0.76676735]
[1729276004400,0.000829,68820.0,68819.0,0.82511315]
[1729276009368,0.000829,68820.0,68819.0,0.83110119]
[1729276011063,0.000829,68820.0,68819.0,0.82511315]
[1729276012988,0.000829,68820.0,68819.0,4.77104215]
[1729276013200,0.000829,68820.0,68819.0,3.57104215]
[1729276017834,0.000829,68820.0,68819.0,2.71035515]
[1729276018333,0.000829,68820.0,68819.0,0.32395915]
[1729276018782,0.000829,68820.0,68819.0,0.32987437]
[1729276019222,0.000829,68820.0,68819.0,0.43912009]
[1729276019430,0.000829,68820.0,68819.0,5.47197437]
[1729276020351,0.000829,68820.0,68819.0,5.49497437]
[1729276022892,0.000829,68820.0,68819.0,5.53928397]
[1729276023887,0.000829,68820.0,68819.0,5.53336875]
[1729276024290,0.000829,68820.0,68819.0,5.53340854]
[1729276024713,0.000829,68820.0,68819.0,5.21565554]
[1729276024912,0.000829,68820.0,68819.0,0.51484715]
[1729276026710,0.000829,68820.0,68819.0,0.33984715]
[1729276026874,0.000829,68820.0,68819.0,0.14895915]
[1729276027077,0.000829,68820.0,68815.0,0.001658]
[1729276027325,0.000829,68820.0,68816.0,0.36705056]
[1729276027539,0.000829,68820.0,68816.0,0.14895915]
[1729276028574,0.000829,68820.0,68817.0,0.1]
[1729276029548,0.000829,68820.0,68819.0,0.31809141]
[1729276029742,0.000829,68820.0,68819.0,3.58234245]
[1729276030331,0.000829,68820.0,68819.0,3.68224245]
[1729276030734,0.000829,68820.0,68819.0,3.68261363]
[1729276031342,0.000829,68820.0,68819.0,3.70561363]
[1729276032626,0.000829,68820.0,68819.0,3.70761363]
[1729276032825,0.000829,68820.0,68819.0,3.70561363]
[1729276033176,0.000829,68820.0,68819.0,3.7703149]
[1729276033831,0.000829,68820.0,68819.0,3.70524245]
[1729276034021,0.000829,68820.0,68819.0,3.74842112]
[1729276034348,0.000829,68820.0,68819.0,3.76994372]
[1729276034479,0.000829,68820.0,68819.0,3.77042216]
[1729276035185,0.000829,68820.0,68819.0,3.79211631]
[1729276035838,0.000829,68820.0,68819.0,3.70572089]
[1729276036055,0.000829,68820.0,68819.0,3.70772089]
[1729276036527,0.000829,68820.0,68819.0,3.62213453]
[1729276036944,0.000829,68820.0,68819.0,3.59913453]
[1729276037155,8.17004178,68830.0,68820.0,0.123]
[1729276037359,8.17004178,68830.0,68827.0,0.04326555]
[1729276037569,0.01046002,68829.0,68828.0,2.86255715]
[1729276037774,0.01046002,68829.0,68828.0,0.24895915]
[1729276037983,0.01046002,68829.0,68828.0,1.87639115]
[1729276038363,0.01046002,68829.0,68828.0,1.30853115]
[1729276038771,0.01046002,68829.0,68828.0,0.54404615]
[1729276039396,0.01046002,68829.0,68828.0,0.24895915]
[1729276039603,0.01046002,68829.0,68828.0,1.05287215]
[1729276041724,8.1496518,68830.0,68829.0,0.1]
[1729276041926,8.1179518,68830.0,68829.0,5.38565352]
[1729276042147,8.1179518,68830.0,68829.0,4.79512315]
[1729276042774,8.1174518,68830.0,68829.0,4.90344187]
[1729276043213,8.1174518,68830.0,68829.0,4.92091948]
[1729276043473,8.1174518,68830.0,68829.0,4.9203441]
[1729276044477,8.1174518,68830.0,68829.0,4.98414906]
[1729276045166,8.1174518,68830.0,68829.0,4.87582315]
[1729276045661,8.1174518,68830.0,68829.0,4.83055886]
[1729276045894,8.1182808,68830.0,68829.0,2.84003225]
[1729276046116,8.1182808,68830.0,68829.0,2.47115025]
[1729276046365,8.1182808,68830.0,68829.0,2.07623625]
[1729276046601,8.1182808,68830.0,68829.0,0.24895915]
[1729276046863,8.1182808,68830.0,68829.0,0.1]
[1729276048082,8.1182808,68830.0,68828.0,0.001658]
[1729276049316,0.00929549,68829.0,68828.0,0.001658]
[1729276054250,0.01547998,68829.0,68828.0,0.001658]
[1729276056998,0.01160343,68829.0,68828.0,0.21261978]
[1729276057206,0.01160343,68829.0,68828.0,3.09691078]
[1729276057423,0.01160343,68829.0,68828.0,3.16194701]
[1729276058072,0.01160343,68829.0,68828.0,3.16193458]
[1729276058284,0.01160343,68829.0,68828.0,3.31089373]
[1729276058498,0.01142943,68829.0,68828.0,3.33256833]
[1729276058980,0.01142943,68829.0,68828.0,4.17753093]
[1729276059128,0.01142943,68829.0,68828.0,4.38750093]
[1729276059330,0.01142943,68829.0,68828.0,4.36059805]
[1729276059539,0.01142943,68829.0,68828.0,4.25222505]
[1729276059741,0.01142943,68829.0,68828.0,4.36058402]
[1729276060371,0.01142943,68829.0,68828.0,4.25222505]
[1729276061263,0.01142943,68829.0,68828.0,4.35192505]
[1729276061467,0.01142943,68829.0,68828.0,4.35392505]
[1729276061670,0.01142943,68829.0,68828.0,4.35192505]
[1729276063639,0.01142943,68829.0,68828.0,3.78535227]
[1729276063851,0.01142943,68829.0,68828.0,3.01900727]
[1729276064079,0.01142943,68829.0,68828.0,2.74039827]
[1729276064705,0.01142943,68829.0,68828.0,2.74703507]
[1729276068169,0.01142943,68829.0,68828.0,2.11413207]
[1729276068371,0.01142943,68829.0,68828.0,2.22246487]
[1729276069213,0.01142943,68829.0,68828.0,2.11413207]
[1729276069413,0.01225843,68829.0,68828.0,2.11413207]
[1729276073089,0.01598529,68829.0,68828.0,2.11413207]
[1729276075504,0.01598529,68829.0,68828.0,0.37847707]
[1729276075714,0.01598529,68829.0,68828.0,0.50845669]
[1729276075929,0.01598529,68829.0,68828.0,0.37847707]
[1729276076106,0.01598529,68829.0,68828.0,4.26453307]
[1729276076613,0.01598529,68829.0,68828.0,4.39463854]
[1729276076819,0.01598529,68829.0,68828.0,3.96454807]
[1729276077586,0.01598529,68829.0,68828.0,3.89405107]
[1729276077804,8.1182808,68830.0,68828.0,3.89405107]
[1729276078010,8.11355249,68830.0,68829.0,4.11272627]
[1729276080008,8.11355249,68830.0,68829.0,4.11924931]
[1729276082714,8.11355249,68830.0,68829.0,0.10842698]
[1729276083010,8.11355249,68830.0,68829.0,0.08674827]
[1729276083208,8.11355249,68830.0,68829.0,0.30194397]
[1729276083408,8.11355249,68830.0,68829.0,4.91214199]
[1729276084060,8.11355249,68830.0,68829.0,5.01214199]
[1729276084907,8.11355249,68830.0,68829.0,4.15447299]
[1729276085113,8.11355249,68830.0,68829.0,0.68300499]
[1729276085331,8.11355249,68830.0,68829.0,0.59786419]
[1729276085564,8.12618786,68830.0,68829.0,0.59786419]
[1729276086257,8.12618786,68830.0,68829.0,0.44488915]
[1729276087184,8.12618786,68830.0,68829.0,0.24895915]
[1729276087405,8.12618786,68830.0,68829.0,0.58713515]
[1729276088130,8.12618786,68830.0,68829.0,0.74011178]
[1729276089031,8.12618786,68830.0,68829.0,0.61011269]
[1729276089265,8.12618786,68830.0,68829.0,0.59591269]
[1729276090233,8.12618786,68830.0,68829.0,0.54751269]
[1729276090990,8.12618786,68830.0,68829.0,0.39855354]
[1729276091247,8.12618786,68830.0,68829.0,0.25294554]
[1729276091470,8.12618786,68830.0,68828.0,0.001658]
[1729276091471,8.20188786,68830.0,68828.0,0.04501902]
[1729276091728,0.09811383,68829.0,68828.0,0.001658]
[1729276092140,0.1113278,68829.0,68828.0,0.001658]
[1729276095309,0.1919278,68829.0,68828.0,0.001658]
[1729276097363,0.1919278,68829.0,68827.0,0.002417]
[1729276097572,0.35345915,68828.0,68827.0,0.002417]
[1729276097775,0.002,68827.0,68815.0,0.21974941]
[1729276097976,0.1795,68824.0,68823.0,0.21809141]
[1729276098088,0.0826,68821.0,68815.0,0.21974941]
[1729276098293,0.15227298,68824.0,68815.0,0.21974941]
[1729276098294,0.0826,68818.0,68815.0,0.21974941]
[1729276098511,0.01641505,68817.0,68816.0,0.21809141]
[1729276098736,0.01310122,68817.0,68816.0,0.31809141]
[1729276098980,0.01310122,68817.0,68816.0,0.12203896]
[1729276099190,0.01641505,68817.0,68816.0,0.12203896]
[1729276099426,0.01310122,68817.0,68816.0,0.12203896]
[1729276099664,0.0826,68824.0,68817.0,0.1]
[1729276099665,0.00331383,68824.0,68817.0,0.1]
[1729276099888,0.01311112,68823.0,68817.0,0.1]
[1729276100087,0.00331383,68822.0,68817.0,0.1]
[1729276100297,0.01310276,68821.0,68817.0,0.1]
[1729276100498,0.00331383,68820.0,68817.0,0.1]
[1729276100701,0.01309678,68819.0,68817.0,0.1]
[1729276100906,0.00331383,68825.0,68815.0,0.001658]
[1729276101110,0.01311284,68824.0,68815.0,0.001658]
[1729276101357,0.00331383,68823.0,68815.0,0.001658]
[1729276101759,0.01310642,68822.0,68817.0,0.1]
[1729276101965,0.00331383,68821.0,68817.0,0.1]
[1729276102545,0.01310534,68820.0,68817.0,0.1]
[1729276102763,0.00331383,68819.0,68817.0,0.1]
[1729276102963,0.00331383,68819.0,68815.0,0.001658]
[1729276103299,0.01309874,68818.0,68815.0,0.001658]
[1729276103516,0.00331383,68825.0,68815.0,0.001658]
[1729276103760,0.01311664,68824.0,68817.0,0.001658]
[1729276103874,0.00331383,68823.0,68817.0,0.001658]
[1729276104080,0.01311022,68822.0,68817.0,0.001658]
[1729276104280,0.00331383,68821.0,68817.0,0.001658]
[1729276104482,0.01310379,68820.0,68817.0,0.001658]
[1729276104717,0.00331383,68819.0,68817.0,0.001658]
[1729276104917,0.01309737,68818.0,68817.0,0.001658]
[1729276105711,0.00331383,68825.0,68817.0,0.001658]
[1729276106037,0.0815,68824.0,68817.0,0.001658]
[1729276106240,0.002,68818.0,68817.0,0.001658]
[1729276106445,0.32805915,68818.0,68817.0,0.001658]
[1729276106669,0.36415652,68818.0,68817.0,0.001658]
[1729276108797,0.37498914,68818.0,68817.0,0.001658]
[1729276110387,0.36415652,68818.0,68817.0,0.001658]
[1729276110617,0.37498272,68818.0,68817.0,0.001658]
[1729276112397,0.36415652,68818.0,68817.0,0.001658]
[1729276112621,0.37498002,68818.0,68817.0,0.001658]
[1729276114405,0.37497901,68818.0,68817.0,0.001658]
[1729276114621,0.36415652,68818.0,68817.0,0.001658]
[1729276115031,0.37497886,68818.0,68817.0,0.001658]
[1729276117186,0.37297886,68818.0,68817.0,0.001658]
[1729276117850,0.16205652,68818.0,68817.0,0.001658]
[1729276121107,0.16205652,68818.0,68815.0,0.001658]
[1729276121340,0.00331383,68817.0,68815.0,0.001658]
[1729276121541,0.01321574,68816.0,68815.0,0.001658]
[1729276124529,0.01321574,68816.0,68815.0,0.08498502]
[1729276124749,0.00414283,68829.0,68815.0,0.07498502]
[1729276124976,0.02387247,68828.0,68816.0,0.00602702]
[1729276125185,0.01302169,68828.0,68819.0,0.0972]
[1729276125423,0.00331383,68827.0,68819.0,0.0972]
[1729276125884,0.01297852,68826.0,68819.0,0.0972]
[1729276126129,0.00331383,68825.0,68819.0,0.0972]
[1729276126333,0.01297336,68824.0,68819.0,0.0972]
[1729276127257,0.01085373,68828.0,68815.0,0.068958]
[1729276127502,0.16312671,68827.0,68816.0,0.001658]
[1729276127712,0.01085373,68826.0,68818.0,0.1]
[1729276127913,0.16312671,68825.0,68818.0,0.1]
[1729276128184,0.02389087,68824.0,68818.0,0.1]
[1729276128390,0.00331383,68823.0,68818.0,0.1]
[1729276128857,0.01302625,68822.0,68818.0,0.1]
[1729276129063,0.00331383,68821.0,68818.0,0.1]
[1729276129556,0.01301982,68820.0,68818.0,0.1]
[1729276129826,0.01301982,68820.0,68819.0,0.00609806]
[1729276130084,0.01301982,68820.0,68816.0,0.001658]
[1729276130322,0.00331383,68824.0,68816.0,0.001658]
[1729276130579,0.01301192,68819.0,68816.0,0.001658]
[1729276130803,0.01300871,68818.0,68816.0,0.001658]
[1729276131256,0.00331383,68824.0,68816.0,0.001658]
[1729276131496,0.01300549,68817.0,68816.0,0.001658]
[1729276131737,0.00414283,68828.0,68816.0,0.001658]
[1729276131964,0.01300549,68817.0,68816.0,0.001658]
[1729276132438,0.00414283,68828.0,68816.0,0.276158]
[1729276132696,0.00414283,68828.0,68817.0,0.1]
[1729276135466,0.00414283,68828.0,68819.0,0.1]
[1729276136421,0.01303762,68827.0,68819.0,0.1]
[1729276136649,0.00331383,68826.0,68819.0,0.1]
[1729276137121,0.01306159,68825.0,68820.0,0.0012584]
[1729276137412,0.01306159,68825.0,68822.0,0.1]
[1729276137914,0.000829,68828.0,68822.0,0.1]
[1729276138405,0.01306801,68827.0,68822.0,0.1]
[1729276141129,0.00331383,68826.0,68822.0,0.1]
[1729276141559,0.0130691,68825.0,68822.0,0.1]
[1729276141777,0.00331383,68824.0,68822.0,0.1]
[1729276142188,0.01306251,68823.0,68822.0,0.1]
[1729276142651,0.00331383,68827.0,68822.0,0.1]
[1729276143071,0.01307013,68826.0,68822.0,0.1]
[1729276143286,0.00331383,68825.0,68822.0,0.1]
[1729276143709,0.0130637,68824.0,68822.0,0.1]
[1729276144368,0.00331383,68827.0,68822.0,0.1]
[1729276144579,0.00331383,68827.0,68818.0,0.02272892]
[1729276144580,0.01306211,68823.0,68818.0,0.02272892]
[1729276144823,0.00331383,68827.0,68820.0,0.1]
[1729276145255,0.01307158,68826.0,68820.0,0.1]
[1729276145441,0.00331383,68825.0,68820.0,0.1]
[1729276145872,0.01306483,68824.0,68817.0,0.0785]
[1729276146123,0.01306483,68824.0,68816.0,0.101658]
[1729276146124,0.00331383,68823.0,68816.0,0.101658]
[1729276146355,0.00331383,68823.0,68816.0,0.001658]
[1729276146568,0.15227298,68823.0,68816.0,0.001658]
[1729276146783,0.023,68821.0,68816.0,0.001658]
[1729276146994,0.14227298,68820.0,68816.0,0.001658]
[1729276147205,0.04743849,68819.0,68816.0,0.001658]
[1729276147415,0.023,68817.0,68816.0,0.001658]
[1729276147621,0.18554094,68817.0,68816.0,0.001658]
[1729276147835,0.20941877,68817.0,68816.0,0.001658]
[1729276148540,0.19583698,68817.0,68816.0,0.001658]
[1729276148755,0.19583373,68817.0,68816.0,0.001658]
[1729276151611,0.02387256,68817.0,68816.0,0.077958]
[1729276151850,0.01301245,68817.0,68816.0,0.077958]
[1729276152067,0.01301245,68817.0,68816.0,0.268458]
[1729276152286,0.000829,68828.0,68816.0,0.46077611]
[1729276152492,0.000829,68828.0,68817.0,0.29227057]
[1729276152735,0.01084839,68826.0,68817.0,0.29227057]
[1729276152951,0.01084839,68826.0,68817.0,0.24895915]
[1729276156787,0.21809141,68825.0,68817.0,0.1]
[1729276157032,0.14895915,68824.0,68816.0,0.001658]
[1729276157249,0.15984829,68824.0,68816.0,0.001658]
[1729276158121,0.15984829,68824.0,68817.0,0.21809141]
[1729276158359,0.01085306,68823.0,68818.0,0.1]
[1729276158567,0.14895915,68822.0,68818.0,0.1]
[1729276158809,0.16031465,68822.0,68818.0,0.1]
[1729276160130,0.16031465,68822.0,68816.0,0.001658]
[1729276161495,0.16031465,68822.0,68817.0,0.21809141]
[1729276161496,0.0113555,68822.0,68817.0,0.21809141]
[1729276161722,0.0113555,68822.0,68816.0,0.001658]
[1729276161937,0.000829,68827.0,68816.0,0.001658]
[1729276162152,0.01133457,68821.0,68816.0,0.001658]
[1729276162371,0.14895915,68826.0,68816.0,0.001658]
[1729276162578,0.01135065,68820.0,68816.0,0.001658]
[1729276162786,0.14895915,68826.0,68816.0,0.001658]
[1729276163009,0.01134743,68819.0,68816.0,0.001658]
[1729276163232,0.14895915,68826.0,68816.0,0.001658]
[1729276163487,0.0113442,68818.0,68816.0,0.001658]
[1729276163676,0.14895915,68826.0,68816.0,0.001658]
[1729276163883,0.01134041,68817.0,68816.0,0.001658]
[1729276164095,0.14895915,68826.0,68816.0,0.001658]
[1729276164323,0.01134041,68817.0,68816.0,0.001658]
[1729276164531,0.14895915,68826.0,68816.0,0.001658]
[1729276164736,0.01134041,68817.0,68816.0,0.001658]
[1729276164959,0.14895915,68826.0,68816.0,0.001658]
[1729276165165,0.01134041,68817.0,68816.0,0.001658]
[1729276165390,0.14895915,68826.0,68816.0,0.001658]
[1729276165625,0.01134041,68817.0,68816.0,0.001658]
[1729276165850,0.14895915,68826.0,68816.0,0.001658]
[1729276166123,0.01134041,68817.0,68816.0,0.001658]
[1729276166361,0.01085053,68825.0,68816.0,0.001658]
[1729276166596,0.01134041,68817.0,68816.0,0.001658]
[1729276166829,0.14895915,68826.0,68816.0,0.001658]
[1729276167064,0.01134041,68817.0,68816.0,0.001658]
[1729276167293,0.14895915,68826.0,68816.0,0.001658]
[1729276167528,0.01134041,68817.0,68816.0,0.001658]
[1729276167757,0.14895915,68826.0,68816.0,0.001658]
[1729276167965,0.01134041,68817.0,68816.0,0.001658]
[1729276168291,0.14895915,68826.0,68816.0,0.001658]
[1729276168503,0.01085253,68825.0,68816.0,0.001658]
[1729276168723,0.01085253,68824.0,68816.0,0.001658]
[1729276168949,0.01136611,68825.0,68816.0,0.001658]
[1729276169154,0.01131715,68823.0,68816.0,0.001658]
[1729276169364,0.01132036,68824.0,68816.0,0.001658]
[1729276169576,0.01131394,68822.0,68816.0,0.001658]
[1729276169785,0.01131715,68823.0,68816.0,0.001658]
[1729276169996,0.14895915,68826.0,68816.0,0.001658]
[1729276169997,0.01131073,68821.0,68816.0,0.001658]
[1729276170214,0.01131394,68822.0,68816.0,0.001658]
[1729276170423,0.01130751,68820.0,68816.0,0.001658]
[1729276170635,0.01131073,68821.0,68816.0,0.001658]
[1729276170848,0.0113043,68819.0,68816.0,0.001658]
[1729276171061,0.01122242,68820.0,68816.0,0.001658]